[Event "Late Titled Tuesday Blitz February 8 2022"]
[White "Velikanov, Alexander"]
[Black "Ruiz Aguilar, Pablo Alexander"]
[WhiteFideId "2039290"]
[BlackFideId "4401352"]
[WhiteElo "2259"]
[BlackElo "2125"]
[Result "1-0"]
[Round "06"]
[TimeControl "180+1"]
[Date "2022.02.09"]
[WhiteClock "0:00:09"]
[BlackClock "0:00:01"]

1. d4 {[%clk 0:03:00]}  d5 {[%clk 0:02:59]} 2. c4 {[%clk 0:03:00]}  c6 {[%clk 0:02:59]} 3. Nf3 {[%clk 0:03:00]}  Nf6 {[%clk 0:02:59]} 4. Qc2 {[%clk 0:03:01]}  e6 {[%clk 0:02:58]} 5. Nbd2 {[%clk 0:03:01]}  Nbd7 {[%clk 0:02:59]} 6. g3 {[%clk 0:03:01]}  Be7 {[%clk 0:02:59]} 7. Bg2 {[%clk 0:03:01]}  O-O {[%clk 0:02:59]} 8. O-O {[%clk 0:03:02]}  b6 {[%clk 0:02:59]} 9. e4 {[%clk 0:03:02]}  Bb7 {[%clk 0:02:58]} 10. b3 {[%clk 0:02:59]}  Rc8 {[%clk 0:02:57]} 11. Bb2 {[%clk 0:02:58]}  Rc7 {[%clk 0:02:37]} 12. exd5 {[%clk 0:02:51]}  cxd5 {[%clk 0:02:34]} 13. Rac1 {[%clk 0:02:45]}  Qa8 {[%clk 0:02:32]} 14. Ne5 {[%clk 0:01:58]}  Rfc8 {[%clk 0:02:27]} 15. Qb1 {[%clk 0:01:47]}  dxc4 {[%clk 0:02:23]} 16. Bxb7 {[%clk 0:01:47]}  Qxb7 {[%clk 0:02:21]} 17. bxc4 {[%clk 0:01:41]}  Nxe5 {[%clk 0:02:16]} 18. dxe5 {[%clk 0:01:40]}  Nd7 {[%clk 0:02:17]} 19. Rfd1 {[%clk 0:01:30]}  Nc5 {[%clk 0:02:15]} 20. Nf1 {[%clk 0:01:30]}  g6 {[%clk 0:02:10]} 21. Ne3 {[%clk 0:01:28]}  Bg5 {[%clk 0:02:00]} 22. Ng4 {[%clk 0:01:21]}  Qf3 {[%clk 0:01:58]} 23. Nf6+ {[%clk 0:01:16]}  Bxf6 {[%clk 0:01:52]} 24. exf6 {[%clk 0:01:16]}  h5 {[%clk 0:01:42]} 25. Rc3 {[%clk 0:01:01]}  Qxf6 {[%clk 0:01:41]} 26. Re3 {[%clk 0:01:01]}  Qf5 {[%clk 0:01:38]} 27. Qa1 {[%clk 0:00:56]}  Ne4 {[%clk 0:01:23]} 28. Rxe4 {[%clk 0:00:42]}  Qxe4 {[%clk 0:01:22]} 29. Bh8 {[%clk 0:00:43]}  Kf8 {[%clk 0:01:14]} 30. Qf6 {[%clk 0:00:25]}  Ke8 {[%clk 0:01:10]} 31. Qg7 {[%clk 0:00:20]}  Rxc4 {[%clk 0:01:06]} 32. Qh6 {[%clk 0:00:12]}  Qe2 {[%clk 0:00:56]} 33. Rd2 {[%clk 0:00:03]}  Rc1+ {[%clk 0:00:55]} 34. Kg2 {[%clk 0:00:04]}  Qf1+ {[%clk 0:00:54]} 35. Kf3 {[%clk 0:00:04]}  R1c3+ {[%clk 0:00:51]} 36. Bxc3 {[%clk 0:00:03]}  Rxc3+ {[%clk 0:00:50]} 37. Kf4 {[%clk 0:00:04]}  Qc4+ {[%clk 0:00:46]} 38. Kg5 {[%clk 0:00:04]}  Qc5+ {[%clk 0:00:32]} 39. Kf6 {[%clk 0:00:04]}  Rf3+ {[%clk 0:00:32]} 40. Kg7 {[%clk 0:00:04]}  Qc3+ {[%clk 0:00:32]} 41. Kg8 {[%clk 0:00:04]}  Qc5 {[%clk 0:00:25]} 42. Qg7 {[%clk 0:00:04]}  Rxf2 {[%clk 0:00:09]} 43. Rd3 {[%clk 0:00:04]}  Rf5 {[%clk 0:00:07]} 44. Kh7 {[%clk 0:00:03]}  g5 {[%clk 0:00:06]} 45. Qg8+ {[%clk 0:00:03]}  Qf8 {[%clk 0:00:06]} 46. Rd8+ {[%clk 0:00:03]}  Kxd8 {[%clk 0:00:06]} 47. Qxf8+ {[%clk 0:00:04]}  Kd7 {[%clk 0:00:07]} 48. Qa8 {[%clk 0:00:05]}  a5 {[%clk 0:00:06]} 49. Qa7+ {[%clk 0:00:05]}  Kc6 {[%clk 0:00:06]} 50. Qa8+ {[%clk 0:00:05]}  Kb5 {[%clk 0:00:06]} 51. Qe4 {[%clk 0:00:05]}  g4 {[%clk 0:00:04]} 52. Qd3+ {[%clk 0:00:05]}  Ka4 {[%clk 0:00:04]} 53. Kg7 {[%clk 0:00:06]}  Kb4 {[%clk 0:00:03]} 54. Qb3+ {[%clk 0:00:06]}  Kc5 {[%clk 0:00:03]} 55. Qc3+ {[%clk 0:00:07]}  Kb5 {[%clk 0:00:03]} 56. a3 {[%clk 0:00:07]}  Ka4 {[%clk 0:00:02]} 57. Qd3 {[%clk 0:00:06]}  b5 {[%clk 0:00:02]} 58. Qc3 {[%clk 0:00:05]}  b4 {[%clk 0:00:03]} 59. axb4 {[%clk 0:00:06]}  axb4 {[%clk 0:00:03]} 60. Qa1+ {[%clk 0:00:07]}  Kb3 {[%clk 0:00:03]} 61. Qb1+ {[%clk 0:00:07]}  Kc4 {[%clk 0:00:03]} 62. Qc2+ {[%clk 0:00:08]}  Kb5 {[%clk 0:00:03]} 63. Qb3 {[%clk 0:00:08]}  Kc5 {[%clk 0:00:02]} 64. Qd3 {[%clk 0:00:08]}  Rf2 {[%clk 0:00:01]} 65. Qe3+ {[%clk 0:00:09]} 1-0


[Site "https://www.chess.com"]

[Event "Late Titled Tuesday Blitz February 8 2022"]
[White "Vusatiuk, Vladimir"]
[Black "Erdogdu, Mert"]
[WhiteFideId "14118610"]
[BlackFideId "6301495"]
[WhiteElo "2157"]
[BlackElo "2485"]
[Result "1-0"]
[Round "06"]
[TimeControl "180+1"]
[Date "2022.02.09"]
[WhiteClock "0:00:12"]
[BlackClock "0:00:06"]

1. Nf3 {[%clk 0:03:00]}  d5 {[%clk 0:02:59]} 2. h4 {[%clk 0:03:00]}  c5 {[%clk 0:02:58]} 3. h5 {[%clk 0:02:59]}  Nc6 {[%clk 0:02:57]} 4. d3 {[%clk 0:02:59]}  h6 {[%clk 0:02:57]} 5. Nbd2 {[%clk 0:02:45]}  Nf6 {[%clk 0:02:55]} 6. e4 {[%clk 0:02:45]}  e5 {[%clk 0:02:47]} 7. exd5 {[%clk 0:02:42]}  Qxd5 {[%clk 0:02:47]} 8. Be2 {[%clk 0:02:36]}  Bg4 {[%clk 0:02:38]} 9. Nh4 {[%clk 0:02:10]}  Bxe2 {[%clk 0:02:35]} 10. Qxe2 {[%clk 0:02:11]}  Nd4 {[%clk 0:02:33]} 11. Qd1 {[%clk 0:02:10]}  O-O-O {[%clk 0:02:27]} 12. Nc4 {[%clk 0:02:02]}  e4 {[%clk 0:02:17]} 13. Ne3 {[%clk 0:02:03]}  Qe6 {[%clk 0:02:13]} 14. dxe4 {[%clk 0:01:29]}  Nxe4 {[%clk 0:02:09]} 15. c3 {[%clk 0:01:25]}  Nc6 {[%clk 0:01:27]} 16. Qg4 {[%clk 0:01:25]}  Ne5 {[%clk 0:01:13]} 17. Qxe6+ {[%clk 0:01:19]}  fxe6 {[%clk 0:01:14]} 18. Ng6 {[%clk 0:00:49]}  Nd3+ {[%clk 0:00:57]} 19. Ke2 {[%clk 0:00:49]}  Rg8 {[%clk 0:00:57]} 20. Ng4 {[%clk 0:00:42]}  c4 {[%clk 0:00:41]} 21. Rh3 {[%clk 0:00:30]}  Bc5 {[%clk 0:00:35]} 22. Be3 {[%clk 0:00:25]}  Rge8 {[%clk 0:00:30]} 23. Bxc5 {[%clk 0:00:20]}  Nexc5 {[%clk 0:00:25]} 24. b4 {[%clk 0:00:20]}  Na4 {[%clk 0:00:23]} 25. N4e5 {[%clk 0:00:14]}  Nxc3+ {[%clk 0:00:21]} 26. Kf1 {[%clk 0:00:12]}  Ne4 {[%clk 0:00:13]} 27. Nxc4 {[%clk 0:00:08]}  Nexf2 {[%clk 0:00:08]} 28. Rf3 {[%clk 0:00:09]}  Ng4 {[%clk 0:00:06]} 29. Rd1 {[%clk 0:00:05]}  Nh2+ {[%clk 0:00:06]} 30. Ke2 {[%clk 0:00:06]}  Nxf3 {[%clk 0:00:05]} 31. gxf3 {[%clk 0:00:07]}  Nxb4 {[%clk 0:00:03]} 32. Nd6+ {[%clk 0:00:07]}  Rxd6 {[%clk 0:00:03]} 33. Rxd6 {[%clk 0:00:07]}  Nc6 {[%clk 0:00:04]} 34. Nf4 {[%clk 0:00:05]}  e5 {[%clk 0:00:02]} 35. Ne6 {[%clk 0:00:06]}  Re7 {[%clk 0:00:02]} 36. Ke3 {[%clk 0:00:04]}  a6 {[%clk 0:00:02]} 37. Ke4 {[%clk 0:00:04]}  Kb8 {[%clk 0:00:03]} 38. Kf5 {[%clk 0:00:05]}  Ka7 {[%clk 0:00:03]} 39. Kg6 {[%clk 0:00:05]}  a5 {[%clk 0:00:03]} 40. Nxg7 {[%clk 0:00:06]}  Kb6 {[%clk 0:00:03]} 41. Kxh6 {[%clk 0:00:06]}  Kc5 {[%clk 0:00:02]} 42. Rd1 {[%clk 0:00:07]}  b5 {[%clk 0:00:02]} 43. Kg6 {[%clk 0:00:07]}  Kb6 {[%clk 0:00:03]} 44. h6 {[%clk 0:00:08]}  Nd4 {[%clk 0:00:02]} 45. Rxd4 {[%clk 0:00:06]}  exd4 {[%clk 0:00:02]} 46. h7 {[%clk 0:00:07]}  Re6+ {[%clk 0:00:02]} 47. Nxe6 {[%clk 0:00:07]}  d3 {[%clk 0:00:03]} 48. h8=Q {[%clk 0:00:08]}  d2 {[%clk 0:00:04]} 49. Qd4+ {[%clk 0:00:09]}  Ka6 {[%clk 0:00:04]} 50. Qxd2 {[%clk 0:00:08]}  a4 {[%clk 0:00:05]} 51. Qd6+ {[%clk 0:00:09]}  Ka5 {[%clk 0:00:05]} 52. a3 {[%clk 0:00:09]}  b4 {[%clk 0:00:05]} 53. Qxb4+ {[%clk 0:00:10]}  Ka6 {[%clk 0:00:06]} 54. Nc5+ {[%clk 0:00:11]}  Ka7 {[%clk 0:00:06]} 55. Qb7# {[%clk 0:00:12]} 1-0


[Site "https://www.chess.com"]

[Event "Late Titled Tuesday Blitz February 8 2022"]
[White "Weetik, Vjacheslav"]
[Black "Noboa Silva, Kevin"]
[WhiteFideId "4153472"]
[BlackFideId "3618471"]
[WhiteElo "2469"]
[BlackElo "2161"]
[Result "1/2-1/2"]
[Round "06"]
[TimeControl "180+1"]
[Date "2022.02.09"]
[WhiteClock "0:00:04"]
[BlackClock "0:00:13"]

1. d4 {[%clk 0:02:45]}  Nf6 {[%clk 0:02:58]} 2. Nf3 {[%clk 0:02:43]}  e6 {[%clk 0:02:55]} 3. c4 {[%clk 0:02:42]}  Bb4+ {[%clk 0:02:49]} 4. Bd2 {[%clk 0:02:40]}  Qe7 {[%clk 0:02:44]} 5. g3 {[%clk 0:02:36]}  Nc6 {[%clk 0:02:41]} 6. Bg2 {[%clk 0:02:36]}  Bxd2+ {[%clk 0:02:41]} 7. Qxd2 {[%clk 0:02:36]}  Ne4 {[%clk 0:02:41]} 8. Qc2 {[%clk 0:02:20]}  Qb4+ {[%clk 0:02:40]} 9. Nbd2 {[%clk 0:01:41]}  Nxd2 {[%clk 0:02:38]} 10. Qxd2 {[%clk 0:01:40]}  Qxc4 {[%clk 0:02:38]} 11. O-O {[%clk 0:01:39]}  O-O {[%clk 0:02:37]} 12. e4 {[%clk 0:01:35]}  Qb4 {[%clk 0:02:23]} 13. Qe3 {[%clk 0:01:29]}  Qb6 {[%clk 0:02:20]} 14. h4 {[%clk 0:01:22]}  d6 {[%clk 0:02:16]} 15. Rac1 {[%clk 0:01:16]}  Qxb2 {[%clk 0:01:50]} 16. d5 {[%clk 0:01:15]}  exd5 {[%clk 0:01:48]} 17. exd5 {[%clk 0:01:15]}  Ne5 {[%clk 0:01:48]} 18. Nxe5 {[%clk 0:01:09]}  dxe5 {[%clk 0:01:44]} 19. Rxc7 {[%clk 0:01:08]}  Bf5 {[%clk 0:01:29]} 20. d6 {[%clk 0:00:55]}  Rad8 {[%clk 0:01:25]} 21. Rxb7 {[%clk 0:00:54]}  Qxa2 {[%clk 0:01:23]} 22. Qxe5 {[%clk 0:00:49]}  Be6 {[%clk 0:01:21]} 23. Ra1 {[%clk 0:00:46]}  Qd2 {[%clk 0:01:19]} 24. Raxa7 {[%clk 0:00:30]}  Qxd6 {[%clk 0:01:12]} 25. Qe3 {[%clk 0:00:27]}  Qd1+ {[%clk 0:01:08]} 26. Kh2 {[%clk 0:00:27]}  Bd5 {[%clk 0:01:07]} 27. Bxd5 {[%clk 0:00:24]}  Qxd5 {[%clk 0:01:05]} 28. Re7 {[%clk 0:00:20]}  h5 {[%clk 0:01:00]} 29. Qf4 {[%clk 0:00:18]}  Rc8 {[%clk 0:00:49]} 30. Rad7 {[%clk 0:00:13]}  Qa2 {[%clk 0:00:49]} 31. Rd2 {[%clk 0:00:06]}  Qa3 {[%clk 0:00:39]} 32. Red7 {[%clk 0:00:05]}  Qa8 {[%clk 0:00:33]} 33. Re2 {[%clk 0:00:03]}  Qa6 {[%clk 0:00:27]} 34. Red2 {[%clk 0:00:03]}  Qa8 {[%clk 0:00:24]} 35. Re2 {[%clk 0:00:02]}  Rb8 {[%clk 0:00:24]} 36. Qe3 {[%clk 0:00:02]}  Rb1 {[%clk 0:00:23]} 37. Re1 {[%clk 0:00:02]}  Rxe1 {[%clk 0:00:21]} 38. Qxe1 {[%clk 0:00:03]}  Qf3 {[%clk 0:00:19]} 39. Re7 {[%clk 0:00:03]}  g6 {[%clk 0:00:18]} 40. Re3 {[%clk 0:00:04]}  Qd5 {[%clk 0:00:17]} 41. Re5 {[%clk 0:00:04]}  Qc6 {[%clk 0:00:17]} 42. Qe2 {[%clk 0:00:05]}  Ra8 {[%clk 0:00:17]} 43. Re3 {[%clk 0:00:04]}  Kh7 {[%clk 0:00:14]} 44. Rf3 {[%clk 0:00:04]}  Kg8 {[%clk 0:00:14]} 45. Re3 {[%clk 0:00:04]}  Kg7 {[%clk 0:00:13]} 46. Qb2+ {[%clk 0:00:04]}  Kg8 {[%clk 0:00:13]} 47. Qe2 {[%clk 0:00:04]} 1/2-1/2


[Site "https://www.chess.com"]

[Event "Late Titled Tuesday Blitz February 8 2022"]
[White "Xie, Bryan"]
[Black "Wachinger, Guenther"]
[WhiteFideId "30941296"]
[BlackFideId "4604261"]
[WhiteElo "1899"]
[BlackElo "2212"]
[Result "0-1"]
[Round "06"]
[TimeControl "180+1"]
[Date "2022.02.09"]
[WhiteClock "0:00:04"]
[BlackClock "0:00:26"]

1. d4 {[%clk 0:02:31]}  Nf6 {[%clk 0:02:59]} 2. Nf3 {[%clk 0:02:30]}  d5 {[%clk 0:02:53]} 3. Bf4 {[%clk 0:02:28]}  c5 {[%clk 0:02:53]} 4. e3 {[%clk 0:02:29]}  Nc6 {[%clk 0:02:53]} 5. Nbd2 {[%clk 0:02:28]}  e6 {[%clk 0:02:53]} 6. h3 {[%clk 0:02:27]}  Bd6 {[%clk 0:02:50]} 7. dxc5 {[%clk 0:02:14]}  Bxc5 {[%clk 0:02:48]} 8. Ne5 {[%clk 0:01:58]}  O-O {[%clk 0:02:47]} 9. Bd3 {[%clk 0:01:57]}  Bd6 {[%clk 0:02:44]} 10. Nxc6 {[%clk 0:01:44]}  bxc6 {[%clk 0:02:45]} 11. Bxd6 {[%clk 0:01:43]}  Qxd6 {[%clk 0:02:43]} 12. O-O {[%clk 0:01:44]}  Rb8 {[%clk 0:02:42]} 13. Rb1 {[%clk 0:01:42]}  e5 {[%clk 0:02:43]} 14. e4 {[%clk 0:01:42]}  Bb7 {[%clk 0:02:34]} 15. Re1 {[%clk 0:01:37]}  Rfe8 {[%clk 0:02:34]} 16. c3 {[%clk 0:01:31]}  h6 {[%clk 0:02:33]} 17. Bc2 {[%clk 0:01:24]}  Ba8 {[%clk 0:02:33]} 18. exd5 {[%clk 0:01:01]}  cxd5 {[%clk 0:02:34]} 19. Ne4 {[%clk 0:01:01]}  Nxe4 {[%clk 0:02:30]} 20. Bxe4 {[%clk 0:01:01]}  Qc5 {[%clk 0:02:30]} 21. Bc2 {[%clk 0:00:59]}  Rbd8 {[%clk 0:02:23]} 22. Qh5 {[%clk 0:00:55]}  d4 {[%clk 0:02:18]} 23. Rbd1 {[%clk 0:00:41]}  Qd5 {[%clk 0:01:03]} 24. Be4 {[%clk 0:00:34]}  Qxa2 {[%clk 0:01:02]} 25. Bxa8 {[%clk 0:00:33]}  Rxa8 {[%clk 0:01:03]} 26. Rxe5 {[%clk 0:00:19]}  dxc3 {[%clk 0:00:56]} 27. bxc3 {[%clk 0:00:16]}  Qb3 {[%clk 0:00:54]} 28. Rde1 {[%clk 0:00:14]}  Rxe5 {[%clk 0:00:50]} 29. Qxe5 {[%clk 0:00:15]}  a5 {[%clk 0:00:50]} 30. Qd4 {[%clk 0:00:11]}  a4 {[%clk 0:00:47]} 31. Ra1 {[%clk 0:00:10]}  a3 {[%clk 0:00:47]} 32. c4 {[%clk 0:00:11]}  Ra4 {[%clk 0:00:42]} 33. Qd8+ {[%clk 0:00:08]}  Kh7 {[%clk 0:00:41]} 34. c5 {[%clk 0:00:08]}  a2 {[%clk 0:00:40]} 35. Kh2 {[%clk 0:00:05]}  Qc3 {[%clk 0:00:33]} 36. Qd1 {[%clk 0:00:05]}  Ra3 {[%clk 0:00:28]} 37. Rc1 {[%clk 0:00:01]}  Qxc1 {[%clk 0:00:27]} 38. Qxc1 {[%clk 0:00:02]}  a1=Q {[%clk 0:00:27]} 39. Qc2+ {[%clk 0:00:03]}  g6 {[%clk 0:00:27]} 40. c6 {[%clk 0:00:03]}  Ra7 {[%clk 0:00:26]} 41. c7 {[%clk 0:00:04]}  Qe5+ {[%clk 0:00:26]} 42. g3 {[%clk 0:00:04]}  Rxc7 {[%clk 0:00:26]} 43. Qd2 {[%clk 0:00:04]}  Re7 {[%clk 0:00:26]} 44. Kg2 {[%clk 0:00:04]}  Qe4+ {[%clk 0:00:26]} 45. Kf1 {[%clk 0:00:04]}  Qh1# {[%clk 0:00:26]} 0-1


[Site "https://www.chess.com"]

[Event "Late Titled Tuesday Blitz February 8 2022"]
[White "Xiong, Jeffery"]
[Black "Kravtsiv, Martyn"]
[WhiteFideId "2047640"]
[BlackFideId "14113147"]
[WhiteElo "2727"]
[BlackElo "2694"]
[Result "1/2-1/2"]
[Round "06"]
[TimeControl "180+1"]
[Date "2022.02.08"]
[WhiteClock "0:00:05"]
[BlackClock "0:00:06"]

1. d4 {[%clk 0:03:00]}  d5 {[%clk 0:03:00]} 2. c4 {[%clk 0:03:01]}  e6 {[%clk 0:03:00]} 3. Nc3 {[%clk 0:03:02]}  Bb4 {[%clk 0:03:00]} 4. Bd2 {[%clk 0:02:52]}  Nf6 {[%clk 0:02:57]} 5. Qa4+ {[%clk 0:02:45]}  Nc6 {[%clk 0:02:56]} 6. Nf3 {[%clk 0:02:46]}  Bd7 {[%clk 0:02:53]} 7. Qb3 {[%clk 0:02:35]}  O-O {[%clk 0:02:41]} 8. a3 {[%clk 0:02:30]}  dxc4 {[%clk 0:02:31]} 9. Qxc4 {[%clk 0:02:29]}  Bd6 {[%clk 0:02:32]} 10. Bg5 {[%clk 0:02:16]}  h6 {[%clk 0:02:25]} 11. Bh4 {[%clk 0:02:15]}  e5 {[%clk 0:02:12]} 12. dxe5 {[%clk 0:02:05]}  Nxe5 {[%clk 0:02:11]} 13. Nxe5 {[%clk 0:02:06]}  Bxe5 {[%clk 0:02:11]} 14. Rd1 {[%clk 0:02:06]}  Be6 {[%clk 0:01:35]} 15. Qc5 {[%clk 0:02:02]}  Bd6 {[%clk 0:01:32]} 16. Qd4 {[%clk 0:02:02]}  g5 {[%clk 0:01:19]} 17. Bg3 {[%clk 0:02:02]}  Bxg3 {[%clk 0:01:19]} 18. hxg3 {[%clk 0:02:03]}  Qxd4 {[%clk 0:01:17]} 19. Rxd4 {[%clk 0:02:02]}  Kg7 {[%clk 0:01:17]} 20. e4 {[%clk 0:01:55]}  Rfd8 {[%clk 0:01:17]} 21. Rxd8 {[%clk 0:01:55]}  Rxd8 {[%clk 0:01:17]} 22. Be2 {[%clk 0:01:54]}  c6 {[%clk 0:01:15]} 23. f3 {[%clk 0:01:45]}  Bb3 {[%clk 0:01:10]} 24. Kf2 {[%clk 0:01:39]}  Rd2 {[%clk 0:01:07]} 25. Rb1 {[%clk 0:01:39]}  Nh5 {[%clk 0:01:07]} 26. f4 {[%clk 0:01:27]}  Nf6 {[%clk 0:00:58]} 27. Ke3 {[%clk 0:01:27]}  Rd7 {[%clk 0:00:55]} 28. Rc1 {[%clk 0:01:19]}  Re7 {[%clk 0:00:52]} 29. Bf3 {[%clk 0:01:06]}  g4 {[%clk 0:00:47]} 30. Be2 {[%clk 0:01:03]}  Nxe4 {[%clk 0:00:44]} 31. Nxe4 {[%clk 0:01:04]}  f5 {[%clk 0:00:44]} 32. Bxg4 {[%clk 0:00:57]}  Rxe4+ {[%clk 0:00:26]} 33. Kd3 {[%clk 0:00:57]}  Kf6 {[%clk 0:00:25]} 34. Bf3 {[%clk 0:00:53]}  Re7 {[%clk 0:00:25]} 35. Rh1 {[%clk 0:00:48]}  Kg6 {[%clk 0:00:25]} 36. Bh5+ {[%clk 0:00:37]}  Kf6 {[%clk 0:00:24]} 37. Bf3 {[%clk 0:00:38]}  Kg6 {[%clk 0:00:25]} 38. Kd4 {[%clk 0:00:34]}  Bd5 {[%clk 0:00:22]} 39. b4 {[%clk 0:00:30]}  Rd7 {[%clk 0:00:20]} 40. Ke3 {[%clk 0:00:26]}  Re7+ {[%clk 0:00:19]} 41. Kd4 {[%clk 0:00:26]}  Rd7 {[%clk 0:00:19]} 42. Ke5 {[%clk 0:00:19]}  Bxf3 {[%clk 0:00:19]} 43. gxf3 {[%clk 0:00:20]}  Rd5+ {[%clk 0:00:19]} 44. Ke6 {[%clk 0:00:20]}  Rd3 {[%clk 0:00:19]} 45. g4 {[%clk 0:00:21]}  Re3+ {[%clk 0:00:18]} 46. Kd6 {[%clk 0:00:19]}  Rxf3 {[%clk 0:00:18]} 47. gxf5+ {[%clk 0:00:18]}  Kxf5 {[%clk 0:00:17]} 48. Rxh6 {[%clk 0:00:18]}  Rxa3 {[%clk 0:00:17]} 49. Kc7 {[%clk 0:00:19]}  b6 {[%clk 0:00:09]} 50. Kxc6 {[%clk 0:00:15]}  Kxf4 {[%clk 0:00:09]} 51. b5 {[%clk 0:00:14]}  Ke5 {[%clk 0:00:09]} 52. Rh5+ {[%clk 0:00:12]}  Kf6 {[%clk 0:00:09]} 53. Rh1 {[%clk 0:00:07]}  Rc3+ {[%clk 0:00:07]} 54. Kb7 {[%clk 0:00:06]}  Ra3 {[%clk 0:00:06]} 55. Re1 {[%clk 0:00:06]}  Kf5 {[%clk 0:00:06]} 56. Re8 {[%clk 0:00:06]}  Kf4 {[%clk 0:00:06]} 57. Ra8 {[%clk 0:00:05]}  Ra5 {[%clk 0:00:06]} 58. Rxa7 {[%clk 0:00:02]}  Rxb5 {[%clk 0:00:06]} 59. Ra6 {[%clk 0:00:03]}  Rb4 {[%clk 0:00:06]} 60. Rxb6 {[%clk 0:00:04]}  Rxb6+ {[%clk 0:00:06]} 61. Kxb6 {[%clk 0:00:05]} 1/2-1/2


[Site "https://www.chess.com"]

[Event "Late Titled Tuesday Blitz February 8 2022"]
[White "Yoo, Christopher Woojin"]
[Black "Garriga Cazorla, Pere"]
[WhiteFideId "30909694"]
[BlackFideId "32011601"]
[WhiteElo "2105"]
[BlackElo "2458"]
[Result "1-0"]
[Round "06"]
[TimeControl "180+1"]
[Date "2022.02.08"]
[WhiteClock "0:00:04"]
[BlackClock "0:00:06"]

1. e4 {[%clk 0:03:00]}  c5 {[%clk 0:02:59]} 2. Nf3 {[%clk 0:03:00]}  Nc6 {[%clk 0:02:57]} 3. b4 {[%clk 0:03:00]}  cxb4 {[%clk 0:02:56]} 4. d4 {[%clk 0:03:00]}  g6 {[%clk 0:02:44]} 5. a3 {[%clk 0:02:21]}  b3 {[%clk 0:02:34]} 6. cxb3 {[%clk 0:02:19]}  Bg7 {[%clk 0:02:34]} 7. Bb2 {[%clk 0:02:18]}  e6 {[%clk 0:02:22]} 8. Nc3 {[%clk 0:02:15]}  d5 {[%clk 0:02:21]} 9. e5 {[%clk 0:02:11]}  Nge7 {[%clk 0:02:21]} 10. Nb5 {[%clk 0:02:08]}  O-O {[%clk 0:02:20]} 11. Bd3 {[%clk 0:02:08]}  Bd7 {[%clk 0:02:14]} 12. O-O {[%clk 0:02:06]}  f6 {[%clk 0:02:02]} 13. exf6 {[%clk 0:01:58]}  Bxf6 {[%clk 0:02:03]} 14. Ne5 {[%clk 0:01:35]}  a6 {[%clk 0:01:52]} 15. Nxd7 {[%clk 0:01:07]}  Qxd7 {[%clk 0:01:51]} 16. Nc3 {[%clk 0:01:08]}  Bxd4 {[%clk 0:01:50]} 17. Qe2 {[%clk 0:01:08]}  e5 {[%clk 0:01:48]} 18. Na4 {[%clk 0:01:06]}  Bxb2 {[%clk 0:01:47]} 19. Qxb2 {[%clk 0:01:07]}  Qd6 {[%clk 0:01:43]} 20. Rad1 {[%clk 0:01:07]}  Rad8 {[%clk 0:01:40]} 21. Rfe1 {[%clk 0:01:06]}  b5 {[%clk 0:01:27]} 22. Nc3 {[%clk 0:01:06]}  Kg7 {[%clk 0:01:26]} 23. Bf1 {[%clk 0:00:55]}  Qf6 {[%clk 0:01:22]} 24. a4 {[%clk 0:00:44]}  b4 {[%clk 0:01:22]} 25. Na2 {[%clk 0:00:44]}  a5 {[%clk 0:01:22]} 26. Nc1 {[%clk 0:00:43]}  h5 {[%clk 0:01:10]} 27. Nd3 {[%clk 0:00:42]}  e4 {[%clk 0:01:10]} 28. Qxf6+ {[%clk 0:00:43]}  Kxf6 {[%clk 0:01:08]} 29. Nc5 {[%clk 0:00:42]}  Ne5 {[%clk 0:01:05]} 30. Bb5 {[%clk 0:00:28]}  Rb8 {[%clk 0:00:49]} 31. Rc1 {[%clk 0:00:22]}  Rfc8 {[%clk 0:00:48]} 32. Red1 {[%clk 0:00:21]}  Kf7 {[%clk 0:00:40]} 33. Kf1 {[%clk 0:00:20]}  Rc7 {[%clk 0:00:39]} 34. Na6 {[%clk 0:00:15]}  Rxc1 {[%clk 0:00:40]} 35. Rxc1 {[%clk 0:00:16]}  Rc8 {[%clk 0:00:40]} 36. Nc7 {[%clk 0:00:08]}  d4 {[%clk 0:00:27]} 37. Rc5 {[%clk 0:00:07]}  Nd3 {[%clk 0:00:22]} 38. Bc4+ {[%clk 0:00:06]}  Kf6 {[%clk 0:00:18]} 39. Bxd3 {[%clk 0:00:05]}  exd3 {[%clk 0:00:17]} 40. Ke1 {[%clk 0:00:06]}  Rd8 {[%clk 0:00:12]} 41. Kd2 {[%clk 0:00:06]}  Nf5 {[%clk 0:00:12]} 42. Kxd3 {[%clk 0:00:06]}  Nh4 {[%clk 0:00:13]} 43. Nd5+ {[%clk 0:00:06]}  Ke5 {[%clk 0:00:11]} 44. Nxb4+ {[%clk 0:00:06]}  Ke6 {[%clk 0:00:10]} 45. Nc6 {[%clk 0:00:05]}  Rd7 {[%clk 0:00:09]} 46. Nxd4+ {[%clk 0:00:05]}  Kf6 {[%clk 0:00:09]} 47. Rc6+ {[%clk 0:00:04]}  Kg7 {[%clk 0:00:09]} 48. Kc4 {[%clk 0:00:03]}  Nxg2 {[%clk 0:00:09]} 49. Ne6+ {[%clk 0:00:03]}  Kh6 {[%clk 0:00:08]} 50. Nc5 {[%clk 0:00:02]}  Rd2 {[%clk 0:00:08]} 51. Ne4 {[%clk 0:00:02]}  Re2 {[%clk 0:00:08]} 52. Nc5 {[%clk 0:00:02]}  Rxf2 {[%clk 0:00:07]} 53. Kb5 {[%clk 0:00:02]}  Ne3 {[%clk 0:00:07]} 54. Kxa5 {[%clk 0:00:03]}  Rxh2 {[%clk 0:00:08]} 55. b4 {[%clk 0:00:03]}  Ra2 {[%clk 0:00:08]} 56. b5 {[%clk 0:00:03]}  h4 {[%clk 0:00:08]} 57. b6 {[%clk 0:00:03]}  Nc4+ {[%clk 0:00:08]} 58. Ka6 {[%clk 0:00:03]}  h3 {[%clk 0:00:07]} 59. b7 {[%clk 0:00:04]}  Rb2 {[%clk 0:00:07]} 60. Nd3 {[%clk 0:00:04]}  Rxb7 {[%clk 0:00:06]} 61. Rxc4 {[%clk 0:00:03]}  Rb3 {[%clk 0:00:06]} 62. Rh4+ {[%clk 0:00:04]}  Kg5 {[%clk 0:00:06]} 63. Rxh3 {[%clk 0:00:05]}  Kg4 {[%clk 0:00:06]} 64. Nf2+ {[%clk 0:00:04]} 1-0


[Site "https://www.chess.com"]